bitfinex-derivatives/quotes_BNBF0:USTF0_20250904
["timestamp","ask_amount","ask_price","bid_price","bid_amount"]
[1756958492859,0.2049645,849.56,848.77,1.29303742]
[1756958493157,0.2049645,849.56,848.78,1.29303742]
[1756958493359,0.2049645,849.56,848.79,1.29303742]
[1756958493554,0.2049645,849.56,848.8,0.58912347]
[1756958493855,0.2049645,849.56,848.81,0.58912347]
[1756958494054,0.2049645,849.56,848.82,0.58912347]
[1756958494257,0.2049645,849.56,848.83,0.58912347]
[1756958494455,0.2049645,849.56,848.84,0.58912347]
[1756958494658,0.2049645,849.56,848.85,0.58912347]
[1756958494859,0.2049645,849.56,848.86,0.58912347]
[1756958495057,0.2049645,849.56,848.87,0.58912347]
[1756958495261,0.2049645,849.56,848.88,0.58912347]
[1756958495560,0.2049645,849.56,848.89,0.58912347]
[1756958495760,0.2049645,849.56,848.9,0.58912347]
[1756958495958,0.2049645,849.56,848.91,0.58912347]
[1756958496255,0.2049645,849.56,848.92,0.58912347]
[1756958496458,0.2049645,849.56,848.93,0.58912347]
[1756958496659,0.2049645,849.56,848.94,0.58912347]
[1756958496860,0.2049645,849.56,848.46,0.78803621]
[1756958497056,0.2049645,849.56,848.47,1.2927249]
[1756958497256,0.2049645,849.56,848.48,1.2927249]
[1756958497460,0.2049645,849.56,848.49,1.2927249]
[1756958497659,0.2049645,849.56,848.5,1.2927249]
[1756958497857,0.2049645,849.56,848.51,1.2927249]
[1756958498158,0.2049645,849.56,848.52,1.2927249]
[1756958498356,0.2049645,849.56,848.53,1.2927249]
[1756958498559,0.2049645,849.56,848.54,1.2927249]
[1756958498755,0.2049645,849.56,848.55,1.2927249]
[1756958498954,0.2049645,849.56,848.56,1.2927249]
[1756958499159,0.2049645,849.56,848.57,1.2927249]
[1756958499357,0.2049645,849.56,848.58,1.2927249]
[1756958499561,0.2049645,849.56,848.59,1.2927249]
[1756958499760,0.2049645,849.56,848.6,1.2927249]
[1756958500058,0.2049645,849.56,848.61,1.2927249]
[1756958500263,0.2049645,849.56,848.62,1.2927249]
[1756958500462,0.2049645,849.56,848.63,1.2927249]
[1756958500662,0.2049645,849.56,848.64,1.2927249]
[1756958500858,0.2049645,849.56,848.65,1.2927249]
[1756958501161,0.2049645,849.56,848.66,1.2927249]
[1756958501362,0.2049645,849.56,848.67,1.2927249]
[1756958501560,0.2049645,849.56,848.68,1.2927249]
[1756958501758,0.2049645,849.56,848.69,1.2927249]
[1756958501958,0.2049645,849.56,848.7,1.2927249]
[1756958502158,0.2049645,849.56,848.71,1.2927249]
[1756958502360,0.2049645,849.56,848.72,1.2927249]
[1756958502660,0.2049645,849.56,848.73,1.2927249]
[1756958502860,0.2049645,849.56,848.74,1.2927249]
[1756958503061,0.2049645,849.56,848.75,1.2927249]
[1756958503260,0.2049645,849.56,848.76,1.2927249]
[1756958503461,0.2049645,849.56,848.77,1.2927249]
[1756958503763,0.2049645,849.56,848.78,1.2927249]
[1756958503958,0.2049645,849.56,848.79,1.2927249]
[1756958504162,0.2049645,849.56,848.8,1.2927249]
[1756958504465,0.2049645,849.56,848.81,1.2927249]
[1756958504664,0.2049645,849.56,848.82,0.58909967]
[1756958504964,0.2049645,849.56,848.83,0.58909967]
[1756958505164,0.2049645,849.56,848.84,0.58909967]
[1756958505363,0.2049645,849.56,848.85,0.58909967]
[1756958505568,0.2049645,849.56,848.86,0.58909967]
[1756958505768,0.2049645,849.56,848.87,0.58909967]
[1756958505967,0.2049645,849.56,848.88,0.58909967]
[1756958506269,0.2049645,849.56,848.89,0.58909967]
[1756958506569,0.2049645,849.56,848.9,0.58909967]
[1756958506769,0.2049645,849.56,848.91,0.58909967]
[1756958507069,0.2049645,849.56,848.92,0.58909967]
[1756958507272,0.2049645,849.56,848.93,0.58909967]
[1756958507470,0.2049645,849.56,848.94,0.58909967]
[1756958507664,0.2049645,849.56,848.95,0.58909967]
[1756958507864,0.2049645,849.56,848.96,0.58909967]
[1756958508068,0.2049645,849.56,848.97,0.58909967]
[1756958508270,0.2049645,849.56,848.98,0.58909967]
[1756958508570,0.2049645,849.56,848.99,0.58909967]
[1756958508870,0.2049645,849.56,848.5,0.78803621]
[1756958509071,0.2049645,849.56,848.51,1.29326077]
[1756958509268,0.2049645,849.56,848.52,1.29326077]
[1756958509466,0.2049645,849.56,848.53,1.29326077]
[1756958509669,0.2049645,849.56,848.54,1.29326077]
[1756958509868,0.2049645,849.56,848.55,1.29326077]
[1756958510169,0.2049645,849.56,848.56,1.29326077]
[1756958510370,0.2049645,849.56,847.45,2.6362745]
[1756958510371,0.2049645,849.56,848.57,1.29326077]
[1756958510568,0.2049645,849.56,848.58,1.29326077]
[1756958510767,0.2049645,849.56,848.59,1.29326077]
[1756958510970,0.2049645,849.56,848.6,1.29326077]
[1756958511171,0.2049645,849.56,848.61,1.29326077]
[1756958511471,0.2049645,849.56,848.62,1.29326077]
[1756958511670,0.2049645,849.56,848.63,1.29326077]
[1756958511969,0.2049645,849.56,848.64,1.29326077]
[1756958512169,0.2049645,849.56,848.65,1.29326077]
[1756958512371,0.2049645,849.56,848.66,1.29326077]
[1756958512571,0.2049645,849.56,848.67,1.29326077]
[1756958512769,0.2049645,849.56,848.68,1.29326077]
[1756958512968,0.2049645,849.56,848.69,1.29326077]
[1756958513171,0.2049645,849.56,848.7,1.29326077]
[1756958513368,0.2049645,849.56,848.71,1.29326077]
[1756958513568,0.2049645,849.56,848.72,1.29326077]
[1756958513771,0.2049645,849.56,848.73,1.29326077]
[1756958513971,0.2049645,849.56,848.74,1.29326077]
[1756958514174,0.2049645,849.56,848.75,1.29326077]
[1756958514373,0.2049645,849.56,848.76,1.29326077]
[1756958514572,0.2049645,849.56,848.77,1.29326077]
[1756958514770,0.2049645,849.56,848.78,1.29326077]
[1756958514973,0.2049645,849.56,848.79,1.29326077]
[1756958515276,0.2049645,849.56,848.8,1.29326077]
[1756958515475,0.2049645,849.56,848.81,1.29326077]
[1756958515676,0.2049645,849.56,848.82,1.29326077]
[1756958515872,0.2049645,849.56,848.83,1.29326077]
[1756958516073,0.2049645,849.56,848.84,1.29326077]
[1756958516273,0.2049645,849.56,848.85,1.29326077]
[1756958516474,0.2049645,849.56,848.86,1.29326077]
[1756958516673,0.2049645,849.56,848.87,1.29326077]
[1756958516873,0.2049645,849.56,848.88,1.29326077]
[1756958517173,0.2049645,849.56,848.54,0.78803621]
[1756958517174,0.2049645,849.56,848.89,1.29326077]
[1756958517477,0.2049645,849.56,848.9,1.29328966]
[1756958517677,0.2049645,849.56,848.91,0.58912309]
[1756958517878,0.2049645,849.56,848.92,0.58912309]
[1756958518073,0.2049645,849.56,848.93,0.58912309]
[1756958518374,0.2049645,849.56,848.94,0.58912309]
[1756958518674,0.2049645,849.56,848.95,0.58912309]
[1756958518977,0.2049645,849.56,848.96,0.58912309]
[1756958519173,0.2049645,849.56,848.97,0.58912309]
[1756958519477,0.2049645,849.56,848.98,0.58912309]
[1756958519677,0.2049645,849.56,848.99,0.58912309]
[1756958519878,0.2049645,849.56,849.0,0.58912309]
[1756958520077,0.2049645,849.56,849.01,0.58912309]
[1756958520377,0.2049645,849.56,847.39,2.6362745]
[1756958520378,0.2049645,849.56,849.02,0.58912309]
[1756958520675,0.2049645,849.56,849.03,0.58912834]
[1756958520878,0.2049645,849.56,849.04,0.58912834]
[1756958521178,0.2049645,849.56,849.05,0.58912834]
[1756958521378,0.2049645,849.56,849.06,0.58912834]
[1756958521578,0.2049645,849.56,849.07,0.58912834]
[1756958521774,0.2049645,849.56,848.59,0.78803621]
[1756958521978,0.2049645,849.56,848.6,1.29515594]
[1756958522279,0.2049645,849.56,848.61,1.29515594]
[1756958522572,0.2049645,849.56,848.62,1.29515594]
[1756958522777,0.2049645,849.56,848.63,1.29515594]
[1756958523077,0.2049645,849.56,848.64,1.29515594]
[1756958523279,0.2049645,849.56,848.65,1.29515594]
[1756958523479,0.2049645,849.56,848.66,1.29515594]
[1756958523679,0.2049645,849.56,848.57,0.78803621]
[1756958523680,0.2049645,849.56,848.67,1.29515594]
[1756958523979,0.2049645,849.56,848.68,1.29515594]
[1756958524181,0.2049645,849.56,848.69,1.29515594]
[1756958524378,0.2049645,849.56,848.7,1.29515594]
[1756958524574,0.2049645,849.56,848.71,1.29515594]
[1756958524779,0.2049645,849.56,848.72,1.29515594]
[1756958524979,0.2049645,849.56,848.73,1.29515594]
[1756958525180,0.2049645,849.56,848.74,1.29515594]
[1756958525482,0.2049645,849.56,848.75,1.29515594]
[1756958525679,0.2049645,849.56,848.76,1.29515594]
[1756958525876,0.2049645,849.56,848.77,1.29515594]
[1756958526182,0.2049645,849.56,848.78,1.29515594]
[1756958526378,0.2049645,849.56,848.79,1.29515594]
[1756958526581,0.2049645,849.56,848.8,1.29515594]
[1756958526881,0.2049645,849.56,848.81,1.29515594]
[1756958527179,0.2049645,849.56,848.82,1.29515594]
[1756958527379,0.2049645,849.56,848.83,1.29515594]
[1756958527581,0.2049645,849.56,848.84,1.29515594]
[1756958527778,0.2049645,849.56,848.85,1.29515594]
[1756958528077,0.2049645,849.56,848.5,0.78803621]
[1756958528078,0.2049645,849.56,848.86,1.29515594]
[1756958528277,0.2049645,849.56,848.25,1.0545098]
[1756958528278,0.2049645,849.56,848.87,1.29515594]
[1756958528482,0.2049645,849.56,848.88,1.29515594]
[1756958528682,0.2049645,849.56,848.89,1.29515594]
[1756958528882,0.2049645,849.56,848.9,1.29515594]
[1756958529181,0.2049645,849.56,848.91,1.29515594]
[1756958529382,0.2049645,849.56,848.92,1.29515594]
[1756958529583,0.2049645,849.56,848.93,1.29515594]
[1756958529782,0.2049645,849.56,848.94,1.29515594]
[1756958529982,0.2049645,849.56,848.95,1.29515594]
[1756958530277,0.2049645,849.56,848.96,0.58912889]
[1756958530480,0.2049645,849.56,848.97,0.58912889]
[1756958530679,0.2049645,849.56,848.98,0.58912889]
[1756958530882,0.2049645,849.56,848.99,0.58912889]
[1756958531178,0.2049645,849.56,849.0,0.58912889]
[1756958531382,0.2049645,849.56,849.01,0.58912889]
[1756958531583,0.2049645,849.56,849.02,0.58912889]
[1756958531884,0.2049645,849.56,849.03,0.58912889]
[1756958532079,0.2049645,849.56,849.04,0.58912889]
[1756958532283,0.2049645,849.56,849.05,0.58912889]
[1756958532480,0.2049645,849.56,849.06,0.58912889]
[1756958532679,0.2049645,849.56,849.07,0.58912889]
[1756958532880,0.2049645,849.56,849.08,0.58912889]
[1756958533183,0.2049645,849.56,848.46,0.78803621]
[1756958533382,0.2049645,849.56,848.47,1.29589254]
[1756958533579,0.2049645,849.56,848.48,1.29589254]
[1756958533783,0.2049645,849.56,848.49,1.29589254]
[1756958534083,0.2049645,849.56,848.5,1.29589254]
[1756958534280,0.2049645,849.56,848.51,1.29589254]
[1756958534584,0.2049645,849.56,848.52,1.29589254]
[1756958534783,0.2049645,849.56,848.53,1.29589254]
[1756958534978,0.2049645,849.56,848.54,1.29589254]
[1756958535179,0.2049645,849.56,848.55,1.29589254]
[1756958535484,0.2049645,849.56,848.56,1.29589254]
[1756958535680,0.2049645,849.56,848.57,1.29589254]
[1756958535880,0.2049645,849.56,848.58,1.29589254]
[1756958536080,0.2049645,849.56,848.59,1.29589254]
[1756958536380,0.2049645,849.56,848.6,1.29589254]
[1756958536583,0.2049645,849.56,848.61,1.29589254]
[1756958536779,0.2049645,849.56,848.62,1.29589254]
[1756958536983,0.2049645,849.56,848.63,1.29589254]
[1756958537186,0.2049645,849.56,848.64,1.29589254]
[1756958537481,0.2049645,849.56,848.65,1.29589254]
[1756958537783,0.2049645,849.56,848.66,1.29589254]
[1756958538081,0.2049645,849.56,848.67,1.29589254]
[1756958538294,0.2049645,849.56,848.68,1.29589254]
[1756958538481,0.2049645,849.56,848.69,1.29589254]
[1756958538781,0.2049645,849.56,848.7,1.29589254]
[1756958538987,0.2049645,849.56,848.71,1.29589254]
[1756958539281,0.2049645,849.56,848.72,1.29589254]
[1756958539482,0.2049645,849.56,848.73,1.29589254]
[1756958539683,0.2049645,849.56,848.74,1.29589254]
[1756958539883,0.2049645,849.56,848.75,1.29589254]
[1756958540082,0.2049645,849.56,848.76,1.29589254]
[1756958540283,0.2049645,849.56,848.77,1.29589254]
[1756958540485,0.2049645,849.56,848.78,1.29589254]
[1756958540684,0.2049645,849.56,848.79,1.29589254]
[1756958540885,0.2049645,849.56,848.8,1.29589254]
[1756958541086,0.2049645,849.56,848.81,1.29589254]
[1756958541390,0.2049645,849.56,848.82,1.29589254]
[1756958541586,0.2049645,849.56,848.83,1.29589254]
[1756958541889,0.2049645,849.56,848.84,1.29589254]
[1756958542090,0.2049645,849.56,848.85,1.29589254]
[1756958542290,0.2049645,849.56,848.86,1.29589254]
[1756958542490,0.2049645,849.56,848.87,1.29589254]
[1756958542686,0.2049645,849.56,848.88,1.29589254]
[1756958542891,0.2049645,849.56,848.89,1.29589254]
[1756958543090,0.2049645,849.56,848.9,1.29589254]
[1756958543288,0.2049645,849.56,848.91,1.29589254]
[1756958543491,0.2049645,849.56,848.92,1.29589254]
[1756958543693,0.2049645,849.56,848.93,1.29589254]
[1756958543894,0.2049645,849.56,848.94,1.29589254]
[1756958544194,0.2049645,849.56,848.95,1.29589254]
[1756958544393,0.2049645,849.56,848.96,0.58917442]
[1756958544594,0.2049645,849.56,848.97,1.2942849]
[1756958544894,0.2049645,849.56,848.98,1.2942849]
[1756958545191,0.2049645,849.56,848.99,0.58917442]
[1756958545494,0.2049645,849.56,849.0,0.58917442]
[1756958545690,0.2049645,849.56,849.01,0.58917442]
[1756958545891,0.2049645,849.56,849.02,1.29420938]
[1756958546088,0.2049645,849.56,848.72,0.78803621]
[1756958546089,0.2049645,849.56,849.03,1.29420938]
[1756958546294,0.2049645,849.56,849.04,1.29420938]
[1756958546490,0.2049645,849.56,849.05,0.58917442]
[1756958546693,0.2049645,849.56,849.06,0.58917442]
[1756958546989,0.2049645,849.56,849.07,0.58917442]
[1756958547190,0.2049645,849.56,849.08,0.58917442]
[1756958547494,0.2049645,849.56,849.09,0.58917442]
[1756958547695,0.2049645,849.56,849.1,0.58904041]
[1756958547991,0.2049645,849.56,849.11,0.58904041]
[1756958548294,0.2049645,849.56,849.12,0.58904041]
[1756958548490,0.2049645,849.56,849.13,0.58904041]
[1756958548694,0.2049645,849.56,849.14,0.58904041]
[1756958548896,0.2049645,849.56,849.15,0.58904041]
[1756958549096,0.2049645,849.56,849.16,0.58904041]
[1756958549297,0.2049645,849.56,849.17,0.58904041]
[1756958549593,0.2049645,849.56,849.18,0.58904041]
[1756958549798,0.2049645,849.56,848.71,0.78803621]
[1756958550093,0.2049645,849.56,848.72,1.29368156]
[1756958550296,0.2049645,849.56,848.71,0.78803621]
[1756958550297,0.2049645,849.56,848.73,1.29368156]
[1756958550497,0.2049645,849.56,848.74,1.29368156]
[1756958550692,0.2049645,849.56,848.7,0.78803621]
[1756958550693,0.2049645,849.56,848.75,1.29368156]
[1756958550892,0.2049645,849.56,848.76,1.29368156]
[1756958551095,0.2049645,849.56,848.77,1.29368156]
[1756958551293,0.2049645,849.56,848.78,1.29368156]
[1756958551593,0.2049645,849.56,848.79,1.29368156]
[1756958551897,0.2049645,849.56,848.8,1.29368156]
[1756958552196,0.2049645,849.56,848.81,1.29368156]
[1756958552402,0.2049645,849.56,848.82,1.29368156]
[1756958552697,0.2049645,849.56,848.83,1.29368156]
[1756958552900,0.2049645,849.56,848.84,1.29368156]
[1756958553100,0.2049645,849.56,848.85,1.29368156]
[1756958553300,0.2049645,849.56,847.72,2.6362745]
[1756958553301,0.2049645,849.56,848.86,1.29368156]
[1756958553598,0.2049645,849.56,848.87,1.29368156]
[1756958553896,0.2049645,849.56,848.88,1.29368156]
[1756958554096,0.2049645,849.56,848.69,0.78803621]
[1756958554097,0.2049645,849.56,848.89,1.29368156]
[1756958554300,0.2049645,849.56,848.9,1.29368156]
[1756958554497,0.2049645,849.56,848.91,1.29368117]
[1756958554699,0.2049645,849.56,848.92,1.29368117]
[1756958554896,0.2049645,849.56,848.93,1.29368117]
[1756958555095,0.2049645,849.56,848.62,0.78803621]
[1756958555096,0.2049645,849.56,848.94,1.29368117]
[1756958555301,0.2049645,849.56,848.95,0.58904068]
[1756958555504,0.2049645,849.56,848.96,0.58904068]
[1756958555698,0.2049645,849.56,848.97,0.58904068]
[1756958555896,0.2049645,849.56,848.98,0.58904068]
[1756958556096,0.2049645,849.56,848.99,0.58904068]
[1756958556395,0.2049645,849.56,848.45,1.0545098]
[1756958556396,0.2049645,849.56,849.0,0.58904068]
[1756958556595,0.2049645,849.56,849.01,0.58904068]
[1756958556799,0.2049645,849.56,849.02,0.58904068]
[1756958556998,0.2049645,849.56,849.03,0.58904068]
[1756958557196,0.2049645,849.56,849.04,0.58904068]
[1756958557503,0.2049645,849.56,849.05,0.58904068]
[1756958557801,0.2049645,849.56,849.06,0.58904068]
[1756958557998,0.2049645,849.56,849.07,0.58904068]
[1756958558299,0.2049645,849.56,849.08,0.58904068]
[1756958558500,0.2049645,849.56,849.09,0.58904068]
[1756958558701,0.2049645,849.56,849.1,0.58904068]
[1756958558895,0.2049645,849.56,849.11,0.58904068]
[1756958559099,0.2049645,849.56,849.12,0.58904068]
[1756958559299,0.2049645,849.56,848.6,0.79286279]
[1756958559300,0.2049645,849.56,849.13,0.58904068]
[1756958559498,0.2049645,849.56,848.6,0.79286279]
[1756958559701,0.2049645,849.56,848.61,1.29333599]
[1756958560000,0.2049645,849.56,848.62,1.29333599]
[1756958560300,0.2049645,849.56,848.63,1.29333599]
[1756958560497,0.2049645,849.56,848.64,1.29333599]
[1756958560696,0.2049645,849.56,848.65,1.29333599]
[1756958560902,1.5797208,849.51,848.66,0.58905137]
[1756958561103,1.5797208,849.51,848.67,0.58905137]
[1756958561305,1.5797208,849.54,848.68,0.58905137]
[1756958561501,1.5797208,849.55,848.69,0.58905137]
[1756958561699,1.5797208,849.55,848.05,0.79286279]
[1756958561904,1.5797208,849.53,848.06,1.29338665]
[1756958562099,1.5797208,849.53,848.07,1.29338665]
[1756958562301,1.5797208,849.53,848.08,1.29338665]
[1756958562502,1.5797208,849.55,848.09,1.29338665]
[1756958562699,1.5797208,849.55,848.0,0.79286279]
[1756958562700,1.5797208,849.55,848.1,1.29338665]
[1756958562901,1.5797208,849.55,848.11,1.29338665]
[1756958563102,1.5797208,849.55,848.12,1.29338665]
[1756958563300,0.2049645,849.56,848.13,1.29338665]
[1756958563501,0.2049645,849.56,848.14,1.29338665]
[1756958563805,0.2049645,849.56,848.15,1.29338665]
[1756958564005,1.5797208,849.54,848.16,1.29338665]
[1756958564301,0.2049645,849.56,848.17,1.29338665]
[1756958564604,0.2049645,849.56,848.18,1.29338665]
[1756958564805,0.2049645,849.56,848.19,1.29338665]
[1756958565001,0.2049645,849.56,848.2,1.29338665]
[1756958565201,0.2049645,849.56,848.21,1.29338665]
[1756958565408,0.2049645,849.56,848.22,1.29338665]
[1756958565603,0.2049645,849.56,848.23,1.29338665]
[1756958565804,0.2049645,849.56,848.24,1.29338665]
[1756958566002,0.2049645,849.56,848.25,1.29338665]
[1756958566208,0.2049645,849.56,848.26,1.29338665]
[1756958566408,0.2049645,849.56,848.27,1.29338665]
[1756958566602,0.2049645,849.56,848.28,1.29338665]
[1756958566803,0.2049645,849.56,848.29,1.29338665]
[1756958567007,0.2049645,849.56,848.3,1.29338665]
[1756958567208,0.2049645,849.56,848.31,1.29338665]
[1756958567511,0.2049645,849.56,848.32,1.29338665]
[1756958567709,0.2049645,849.56,848.33,1.29338665]
[1756958568008,0.2049645,849.56,848.34,1.29338665]
[1756958568211,0.2049645,849.56,848.35,1.29338665]
[1756958568512,0.2049645,849.56,848.36,1.29338665]
[1756958568810,0.2049645,849.56,848.37,1.29338665]
[1756958569010,0.2049645,849.56,848.38,1.29338665]
[1756958569210,0.2049645,849.56,848.39,1.29338665]
[1756958569409,0.2049645,849.56,848.4,1.29338665]
[1756958569613,0.2049645,849.56,848.41,1.29338665]
[1756958569912,0.2049645,849.56,848.42,1.29338665]
[1756958570209,0.2049645,849.56,848.43,1.29338665]
[1756958570409,0.2049645,849.56,848.44,1.29338665]
[1756958570610,0.2049645,849.56,848.45,1.29338665]
[1756958570912,0.2049645,849.56,848.46,1.29338665]
[1756958571212,0.2049645,849.56,848.47,1.29338665]
[1756958571513,0.2049645,849.56,848.48,0.58935823]
[1756958571811,0.2049645,849.56,848.49,0.58935823]
[1756958572007,0.2049645,849.56,848.06,0.79286279]
[1756958572008,0.2049645,849.56,848.5,0.58935823]
[1756958572315,0.2049645,849.56,848.51,0.58935823]
[1756958572514,0.2049645,849.56,848.52,0.58935823]
[1756958572710,0.2049645,849.56,848.53,0.58935823]
[1756958572910,0.2049645,849.56,848.54,0.58935823]
[1756958573110,0.2049645,849.56,848.55,0.58935823]
[1756958573315,0.2049645,849.56,848.56,0.58935823]
[1756958573615,0.2049645,849.56,848.57,0.58935823]
[1756958573909,0.2049645,849.56,848.06,0.79286279]
[1756958574112,0.2049645,849.56,848.07,1.28946377]
[1756958574315,0.2049645,849.56,848.08,1.28946377]
[1756958574509,0.2049645,849.56,848.09,1.28946377]
[1756958574713,0.2049645,849.56,848.1,1.28946377]
[1756958574911,0.2049645,849.56,848.11,1.28946377]
[1756958575114,0.2049645,849.56,848.12,1.28946377]
[1756958575314,0.2049645,849.56,848.13,1.28946377]
[1756958575610,0.2049645,849.56,848.14,1.28946377]
[1756958575810,0.2049645,849.56,848.15,1.28946377]
[1756958576011,0.2049645,849.56,848.16,1.28946377]
[1756958576214,0.2049645,849.56,848.17,1.28946377]
[1756958576415,0.2049645,849.56,848.18,1.28946377]
[1756958576612,0.2049645,849.56,848.19,1.28946377]
[1756958576818,0.2049645,849.56,848.2,1.28946377]
[1756958577014,0.2049645,849.56,848.21,1.28946377]
[1756958577314,0.2049645,849.56,848.22,1.28946377]
[1756958577510,0.2049645,849.56,848.23,1.28946377]
[1756958577815,0.2049645,849.56,848.24,1.28946377]
[1756958578016,0.2049645,849.56,848.25,1.28946377]
[1756958578218,0.2049645,849.56,848.26,1.28946377]
[1756958578510,0.2049645,849.56,848.27,1.28946377]
[1756958578711,0.2049645,849.56,848.28,1.28946377]
[1756958578915,0.2049645,849.56,848.29,1.28946377]
[1756958579117,0.2049645,849.56,848.3,1.28946377]
[1756958579316,0.2049645,849.56,848.31,1.28946377]
[1756958579518,0.2049645,849.56,848.32,1.28946377]
[1756958579715,0.2049645,849.56,848.33,1.28946377]
[1756958579919,1.5797208,849.53,848.34,0.58938708]
[1756958580119,1.5797208,849.53,848.35,0.58938708]
[1756958580418,1.5797208,849.53,848.01,0.79286279]
[1756958580419,1.5797208,849.53,848.36,0.58938708]
[1756958580617,1.5797208,849.53,848.37,0.58938708]
[1756958580916,1.5797208,849.53,848.38,0.58938708]
[1756958581218,1.5797208,849.53,848.39,0.58938708]
[1756958581414,1.5797208,849.53,848.4,0.58938708]
[1756958581616,1.5797208,849.54,848.41,0.58938708]
[1756958581816,1.5797208,849.54,848.42,0.58938708]
[1756958582019,1.5797208,849.54,848.43,0.58938708]
[1756958582220,1.5797208,849.53,848.02,0.79286279]
[1756958582420,1.5797208,849.53,848.03,1.28910884]
[1756958582717,1.5797208,849.53,848.04,1.28910884]
[1756958582921,1.5797208,849.53,848.05,1.28910884]
[1756958583120,1.5797208,849.53,848.06,1.28910884]
[1756958583321,1.5797208,849.54,848.07,1.28910884]
[1756958583620,1.5797208,849.52,848.08,1.28910884]
[1756958583821,1.5797208,849.52,848.09,1.28910884]
[1756958584025,0.2049645,849.56,848.1,1.28910884]
[1756958584217,0.2049645,849.56,848.11,1.28910884]
[1756958584520,0.2049645,849.56,848.13,0.79286279]
[1756958584716,0.2049645,849.56,848.14,2.08197163]
[1756958584921,0.2049645,849.56,848.15,1.28910884]
[1756958585218,0.2049645,849.56,848.16,1.28910884]
[1756958585422,0.2049645,849.56,848.17,1.28910884]
[1756958585619,0.2049645,849.56,848.18,1.28910884]
[1756958585819,0.2049645,849.56,848.19,1.28910884]
[1756958586023,0.2049645,849.56,848.2,1.28910884]
[1756958586224,0.2049645,849.56,848.21,1.28910884]
[1756958586520,0.2049645,849.56,848.22,1.28910884]
[1756958586724,0.2049645,849.56,848.23,1.28910884]
[1756958586924,0.2049645,849.56,848.24,1.28910884]
[1756958587224,0.2049645,849.56,848.25,1.28910884]
[1756958587425,0.2049645,849.56,848.26,1.28910884]
[1756958587721,0.2049645,849.56,848.27,1.28910884]
[1756958588021,0.2049645,849.56,848.28,1.28910884]
[1756958588321,0.2049645,849.56,848.29,1.28910884]
[1756958588520,0.2049645,849.56,848.3,1.28910884]
[1756958588719,0.2049645,849.56,848.31,1.28910884]
[1756958588921,0.2049645,849.56,848.32,1.28910884]
[1756958589121,0.2049645,849.56,848.33,1.28910884]
[1756958589325,0.2049645,849.56,848.34,1.28910884]
[1756958589526,0.2049645,849.56,848.35,1.28910884]
[1756958589825,0.2049645,849.56,848.36,1.28910884]
[1756958590025,0.2049645,849.56,848.37,1.28910884]
[1756958590226,0.2049645,849.56,848.38,1.28910884]
[1756958590425,0.2049645,849.56,848.39,1.28910884]
[1756958590722,0.2049645,849.56,848.4,1.28910884]
[1756958590926,0.2049645,849.56,848.41,1.28910884]
[1756958591121,0.2049645,849.56,848.21,0.79286279]
[1756958591122,0.2049645,849.56,848.42,1.28910884]
[1756958591321,0.2049645,849.56,848.43,1.28910884]
[1756958591526,0.2049645,849.56,848.44,1.28910884]
[1756958591727,0.2049645,849.56,848.45,1.28910884]
[1756958591922,0.2049645,849.56,848.46,1.28910884]
[1756958592127,0.2049645,849.56,848.47,1.28910884]
[1756958592427,0.2049645,849.56,848.48,1.28910884]
[1756958592626,0.2049645,849.56,848.49,1.28910884]
[1756958592826,0.2049645,849.56,848.5,1.28910884]
[1756958593025,0.2049645,849.56,848.21,0.79286279]
[1756958593026,0.2049645,849.56,848.51,1.28910884]
[1756958593226,0.2049645,849.56,848.52,1.28910884]
[1756958593426,0.2049645,849.56,848.53,1.28910884]
[1756958593625,0.2049645,849.56,848.54,1.28910884]
[1756958593822,0.2049645,849.56,848.55,1.28910884]
[1756958594028,0.2049645,849.56,848.56,1.28910884]
[1756958594323,0.2049645,849.56,848.57,1.28910884]
[1756958594524,0.2049645,849.56,848.26,0.79286279]
[1756958594525,0.2049645,849.56,848.58,0.58940975]
[1756958594724,0.2049645,849.56,848.59,0.58940975]
[1756958594927,0.2049645,849.56,848.6,0.58940975]
[1756958595125,0.2049645,849.56,848.61,0.58940975]
[1756958595424,0.2049645,849.56,848.62,0.58940975]
[1756958595626,0.2049645,849.56,848.63,0.58940975]
[1756958595929,0.2049645,849.56,848.64,0.58940975]
[1756958596131,0.2049645,849.56,848.65,0.58940975]
[1756958596326,0.2049645,849.56,848.66,0.58925014]
[1756958596532,0.2049645,849.56,848.21,0.79286279]
[1756958596733,0.2049645,849.56,848.22,1.28893782]
[1756958596932,0.2049645,849.56,848.23,1.28893782]
[1756958597129,0.2049645,849.56,848.24,1.28893782]
[1756958597331,0.2049645,849.56,848.25,1.28893782]
[1756958597528,0.2049645,849.56,848.26,1.28893782]
[1756958597828,0.2049645,849.56,848.27,1.28893782]
[1756958598032,0.2049645,849.56,848.28,1.28893782]
[1756958598233,0.2049645,849.56,848.29,1.28893782]
[1756958598431,0.2049645,849.56,848.3,1.28893782]
[1756958598637,0.2049645,849.56,848.31,1.28893782]
[1756958598835,1.5797208,849.54,848.32,1.28893782]
[1756958599034,1.5797208,849.54,848.33,1.28893782]
[1756958599333,1.5797208,849.54,848.34,1.28893782]
[1756958599535,1.5797208,849.54,848.35,1.28893782]
[1756958599834,1.5797208,849.54,848.36,1.28893782]
[1756958600034,1.5797208,849.54,848.37,1.28893782]
[1756958600235,1.5797208,849.54,848.38,0.58925014]
[1756958600435,1.5797208,849.54,848.39,0.58925014]